[Event "SRB-chT Women 1st League 2019"]
[Site "Subotica"]
[Date "2019.08.24"]
[Round "3"]
[White "Strutinskaia, Galina"]
[Black "Bojkovic, Natasa"]
[Result "1/2-1/2"]
[ECO "E12"]
[WhiteElo "2205"]
[BlackElo "2374"]
[Annotator "NA"]
[PlyCount "47"]
[EventDate "2019.08.23"]
[EventType "team-tourn"]
[EventCountry "SRB"]
[SourceTitle "playchess.com"]
[Source "ChessBase"]
[SourceQuality "1"]
[TimeControl "40/5400+30:1800+30"]

1. d4 {[%emt 0:00:30]} Nf6 {[%emt 0:00:30]} 2. Nf3 {[%emt 0:00:00]} e6 {[%emt 0:00:30]} 3. c4 {[%emt 0:00:00]} b6 {[%emt 0:00:30]} 4. Nc3 {[%emt 0:00:30]} Bb7 {[%emt 0:01:30]} 5. a3 {[%emt 0:01:30]} d5 {[%emt 0:01:30]} 6. e3 {[%emt 0:00:30]} Nbd7 {[%emt 0:02:30]} 7. cxd5 {[%emt 0:01:30]} exd5 {[%emt 0:03:30]} 8. Bd3 {[%emt 0:05:30]} a6 {[%emt 0:04:30]} 9. Qc2 {[%emt 0:07:30]} Bd6 {[%emt 0:11:30]} 10. b4 {[%emt 0:01:30]} O-O {[%emt 0:01:30]} 11. b5 {[%emt 0:04:30]} Qe7 {[%emt 0:06:30]} 12. Qb3 {[%emt 0:03:30]} a5 {[%emt 0:00:30]} 13. a4 {[%emt 0:00:30]} Ne4 {[%emt 0:20:30]} 14. O-O {[%emt 0:05:30]} Nxc3 {[%emt 0:01:30]} 15. Qxc3 {[%emt 0:00:00]} Rfc8 {[%emt 0:00:30]} 16. Qb3 {[%emt 0:06:00]} c5 {[%emt 0:13:30]} 17. bxc6 {[%emt 0:02:30]} Rxc6 {[%emt 0:00:30]} 18. Bd2 {[%emt 0:07:30]} Nf6 {[%emt 0:02:30]} 19. Rfc1 {[%emt 0:02:30]} Rac8 {[%emt 0:00:30]} 20. Rxc6 {[%emt 0:00:00]} Rxc6 {[%emt 0:00:00]} 21. Rc1 {[%emt 0:01:00]} Qc7 {[%emt 0:04:00]} 22. Rb1 {[%emt 0:15:30]} Bc8 {[%emt 0:00:00]} 23. Bb5 {[%emt 0:02:30]} Rc2 24. Bd3 1/2-1/2

[Event "SRB-chT Women 1st League 2019"]
[Site "Subotica"]
[Date "2019.08.24"]
[Round "3"]
[White "Dimitrijevic, Aleksandra"]
[Black "Nestorovic, Katarina"]
[Result "1/2-1/2"]
[ECO "A70"]
[WhiteElo "2142"]
[BlackElo "2159"]
[Annotator "NA"]
[PlyCount "50"]
[EventDate "2019.08.23"]
[EventType "team-tourn"]
[EventCountry "SRB"]
[SourceTitle "playchess.com"]
[Source "ChessBase"]
[SourceQuality "1"]
[TimeControl "40/5400+30:1800+30"]

1. d4 {[%emt 0:02:30]} Nf6 {[%emt 0:00:30]} 2. Be3 {[%emt 0:00:30]} e6 {[%emt 0:01:30]} 3. Nf3 {[%emt 0:00:30]} b6 {[%emt 0:01:30]} 4. g3 {[%emt 0:00:30]} Bb7 {[%emt 0:00:00]} 5. Bg2 {[%emt 0:00:00]} d5 {[%emt 0:01:00]} 6. O-O {[%emt 0:03:00]} Be7 {[%emt 0:00:30]} 7. h3 {[%emt 0:00:30]} O-O {[%emt 0:01:30]} 8. Nbd2 {[%emt 0:01:30]} c5 {[%emt 0:00:30]} 9. c3 {[%emt 0:00:30]} Nc6 {[%emt 0:00:30]} 10. Nb3 {[%emt 0:04:30]} c4 {[%emt 0:09:30]} 11. Nbd2 {[%emt 0:02:30]} b5 {[%emt 0:00:30]} 12. a3 {[%emt 0:00:00]} a5 {[%emt 0:00:30]} 13. Ne5 {[%emt 0:05:00]} Nxe5 {[%emt 0:05:30]} 14. dxe5 {[%emt 0:00:30]} Nd7 {[%emt 0:00:30]} 15. Bd4 {[%emt 0:02:30]} Qc7 {[%emt 0:01:30]} 16. f4 {[%emt 0:00:00]} Nc5 {[%emt 0:07:30]} 17. Kh2 {[%emt 0:05:00]} Rab8 {[%emt 0:05:30]} 18. Qc2 {[%emt 0:10:30]} Bc6 {[%emt 0:06:30]} 19. f5 {[%emt 0:11:30]} exf5 {[%emt 0:00:30]} 20. Qxf5 {[%emt 0:04:30]} Rbd8 {[%emt 0:09:30]} 21. Qf2 {[%emt 0:08:30]} Bb7 {[%emt 0:05:30]} 22. Rae1 {[%emt 0:02:30]} Rc8 {[%emt 0:07:30]} 23. Qf5 {[%emt 0:06:30]} Rcd8 {[%emt 0:15:01]} 24. Qf2 {[%emt 0:06:30]} Rc8 {[%emt 0:00:50]} 25. Qf5 {[%emt 0:01:30]} Rcd8 {[%emt 0:00:05]} 1/2-1/2

[Event "SRB-chT Women 1st League 2019"]
[Site "Subotica"]
[Date "2019.08.24"]
[Round "3"]
[White "Tomin, Ksenija"]
[Black "Srdanovic, Jovana"]
[Result "1/2-1/2"]
[ECO "B23"]
[WhiteElo "2041"]
[BlackElo "2005"]
[Annotator "NA"]
[PlyCount "132"]
[EventDate "2019.08.23"]
[EventType "team-tourn"]
[EventCountry "SRB"]
[SourceTitle "playchess.com"]
[Source "ChessBase"]
[SourceQuality "1"]
[TimeControl "40/5400+30:1800+30"]

1. e4 {[%emt 0:00:30]} c5 {[%emt 0:00:30]} 2. Nc3 {[%emt 0:00:30]} Nc6 {[%emt 0:00:30]} 3. Bb5 {[%emt 0:00:30]} Nd4 {[%emt 0:00:30]} 4. Nf3 {[%emt 0:00:30]} Nxb5 {[%emt 0:00:30]} 5. Nxb5 {[%emt 0:00:30]} a6 {[%emt 0:00:30]} 6. Nc3 {[%emt 0:00:30]} e6 {[%emt 0:00:30]} 7. d4 {[%emt 0:00:30]} cxd4 {[%emt 0:00:30]} 8. Qxd4 {[%emt 0:00:30]} Ne7 {[%emt 0:00:30]} 9. Bf4 {[%emt 0:00:30]} Nc6 {[%emt 0:00:30]} 10. Qd2 {[%emt 0:00:30]} Be7 {[%emt 0:00:30]} 11. O-O {[%emt 0:00:30]} O-O {[%emt 0:00:30]} 12. Bd6 {[%emt 0:00:30]} f6 {[%emt 0:00:30]} 13. Rad1 {[%emt 0:00:30]} b5 {[%emt 0:00:30]} 14. Ne2 {[%emt 0:00:30]} Bxd6 {[%emt 0:00:30]} 15. Qxd6 {[%emt 0:00:30]} Qe7 {[%emt 0:00:30]} 16. b3 {[%emt 0:00:30]} Qxd6 {[%emt 0:00:30]} 17. Rxd6 {[%emt 0:00:30]} Kf7 {[%emt 0:00:30]} 18. Rfd1 {[%emt 0:00:30]} Ke7 {[%emt 0:00:30]} 19. Nf4 {[%emt 0:00:30]} Nd8 {[%emt 0:00:30]} 20. h4 {[%emt 0:00:30]} Nf7 {[%emt 0:00:30]} 21. R6d2 {[%emt 0:00:30]} Rd8 {[%emt 0:00:30]} 22. Nd4 {[%emt 0:00:30]} Bb7 {[%emt 0:00:30]} 23. f3 {[%emt 0:00:30]} g6 {[%emt 0:00:30]} 24. Nde2 {[%emt 0:00:30]} Rac8 {[%emt 0:00:30]} 25. c3 {[%emt 0:00:30]} g5 {[%emt 0:00:30]} 26. hxg5 {[%emt 0:00:30]} fxg5 {[%emt 0:00:30]} 27. Nd3 {[%emt 0:00:30]} g4 {[%emt 0:00:30]} 28. Kf2 {[%emt 0:00:30]} d6 {[%emt 0:00:30]} 29. Ke3 {[%emt 0:00:30]} Ng5 {[%emt 0:00:30]} 30. Nf2 {[%emt 0:00:30]} gxf3 {[%emt 0:00:30]} 31. gxf3 {[%emt 0:00:30]} d5 {[%emt 0:00:30]} 32. e5 {[%emt 0:00:30]} d4+ {[%emt 0:00:30]} 33. Nxd4 {[%emt 0:00:30]} Rxc3+ {[%emt 0:00:30]} 34. Rd3 {[%emt 0:00:30]} Rxd3+ {[%emt 0:00:30]} 35. Rxd3 {[%emt 0:00:30]} Nf7 {[%emt 0:00:30]} 36. f4 {[%emt 0:00:30]} Rg8 {[%emt 0:00:30]} 37. Ne4 {[%emt 0:00:30]} Rg1 {[%emt 0:00:30]} 38. Nc5 {[%emt 0:00:30]} Rg3+ {[%emt 0:00:30]} 39. Kd2 {[%emt 0:00:30]} Rxd3+ {[%emt 0:00:30]} 40. Kxd3 {[%emt 0:00:30]} Nd8 {[%emt 0:00:30]} 41. Nxb7 {[%emt 0:30:30]} Nxb7 {[%emt 0:30:30]} 42. Nf3 {[%emt 0:00:30]} h6 {[%emt 0:00:30]} 43. Kd4 {[%emt 0:00:30]} Kd7 {[%emt 0:00:30]} 44. b4 {[%emt 0:00:30]} Ke7 {[%emt 0:00:30]} 45. Ke4 {[%emt 0:00:30]} Kd7 {[%emt 0:00:30]} 46. f5 {[%emt 0:00:30]} exf5+ {[%emt 0:00:30]} 47. Kxf5 {[%emt 0:00:30]} Ke7 {[%emt 0:00:30]} 48. Nh4 {[%emt 0:00:30]} Nd8 {[%emt 0:00:30]} 49. Ng6+ {[%emt 0:00:30]} Kf7 {[%emt 0:00:30]} 50. Nf4 {[%emt 0:00:30]} Nc6 {[%emt 0:00:30]} 51. e6+ {[%emt 0:00:30]} Ke7 {[%emt 0:00:30]} 52. Ng6+ {[%emt 0:00:30]} Ke8 {[%emt 0:00:30]} 53. Kf6 {[%emt 0:00:30]} Nxb4 {[%emt 0:00:30]} 54. Nh8 {[%emt 0:00:30]} Nd5+ {[%emt 0:00:30]} 55. Ke5 {[%emt 0:00:30]} Ne7 {[%emt 0:00:30]} 56. Nf7 {[%emt 0:00:30]} h5 {[%emt 0:00:30]} 57. Kd6 {[%emt 0:00:30]} Ng6 {[%emt 0:00:30]} 58. Ng5 {[%emt 0:00:30]} h4 {[%emt 0:00:30]} 59. Nh3 {[%emt 0:00:30]} Kd8 {[%emt 0:00:30]} 60. Ng5 {[%emt 0:00:30]} Ke8 {[%emt 0:00:30]} 61. Nh3 {[%emt 0:00:30]} Kd8 {[%emt 0:00:30]} 62. Ng5 {[%emt 0:00:30]} Ke8 {[%emt 0:00:30]} 63. Nh3 {[%emt 0:00:30]} Ne7 {[%emt 0:00:30]} 64. Nf4 {[%emt 0:00:30]} Nf5+ {[%emt 0:00:30]} 65. Ke5 {[%emt 0:00:30]} Ne7 {[%emt 0:00:30]} 66. Kd6 {[%emt 0:00:30]} Nf5+ {[%emt 0:00:30]} 1/2-1/2

[Event "SRB-chT Women 1st League 2019"]
[Site "Subotica"]
[Date "2019.08.24"]
[Round "3"]
[White "Arsovic, Jelena"]
[Black "Stanimirovic, Marija"]
[Result "0-1"]
[ECO "B20"]
[WhiteElo "2034"]
[BlackElo "1896"]
[Annotator "NA"]
[PlyCount "76"]
[EventDate "2019.08.23"]
[EventType "team-tourn"]
[EventCountry "SRB"]
[SourceTitle "playchess.com"]
[Source "ChessBase"]
[SourceQuality "1"]
[TimeControl "40/5400+30:1800+30"]

1. e4 {[%emt 0:00:30]} c5 {[%emt 0:00:30]} 2. Nf3 {[%emt 0:00:00]} a6 {[%emt 0:00:00]} 3. a4 {[%emt 0:06:00]} Nc6 {[%emt 0:04:00]} 4. Bc4 {[%emt 0:03:30]} e6 {[%emt 0:02:30]} 5. Nc3 {[%emt 0:06:30]} Nf6 {[%emt 0:08:30]} 6. Qe2 {[%emt 0:09:30]} Nd4 {[%emt 0:04:30]} 7. Qd3 {[%emt 0:11:30]} d5 {[%emt 0:10:30]} 8. Bb3 {[%emt 0:23:30]} Nxb3 {[%emt 0:10:30]} 9. cxb3 {[%emt 0:04:30]} d4 {[%emt 0:01:30]} 10. Ne2 {[%emt 0:00:30]} Qa5 {[%emt 0:07:30]} 11. O-O {[%emt 0:08:30]} b5 {[%emt 0:11:30]} 12. b4 {[%emt 0:06:04]} Qxb4 {[%emt 0:04:30]} 13. axb5 {[%emt 0:00:54]} Bb7 {[%emt 0:01:30]} 14. bxa6 {[%emt 0:07:16]} Bxe4 {[%emt 0:00:30]} 15. Qa3 {[%emt 0:00:36]} Qxa3 {[%emt 0:05:30]} 16. Rxa3 {[%emt 0:00:06]} Bd6 {[%emt 0:06:42]} 17. Ra5 {[%emt 0:03:16]} Bd3 {[%emt 0:00:28]} 18. Re1 {[%emt 0:02:35]} Rxa6 {[%emt 0:00:26]} 19. Rxa6 {[%emt 0:00:07]} Bxa6 {[%emt 0:00:00]} 20. b4 {[%emt 0:01:38]} cxb4 {[%emt 0:10:11]} 21. Nexd4 {[%emt 0:00:34]} O-O {[%emt 0:03:50]} 22. Bb2 {[%emt 0:00:52]} Nd5 {[%emt 0:00:45]} 23. Ra1 {[%emt 0:00:37]} Bd3 {[%emt 0:01:11]} 24. Ne1 {[%emt 0:00:35]} Bg6 {[%emt 0:00:24]} 25. Nb5 {[%emt 0:01:06]} Bf4 {[%emt 0:00:16]} 26. Nf3 {[%emt 0:00:37]} h6 {[%emt 0:01:00]} 27. g3 {[%emt 0:00:08]} Bb8 {[%emt 0:02:02]} 28. Ne5 {[%emt 0:00:20]} Bxe5 {[%emt 0:01:16]} 29. Bxe5 {[%emt 0:00:01]} f6 {[%emt 0:01:23]} 30. Bb2 {[%emt 0:01:11]} Rc8 {[%emt 0:00:34]} 31. Rc1 {[%emt 0:01:10]} Ra8 {[%emt 0:00:42]} 32. Ra1 {[%emt 0:00:44]} Rxa1+ {[%emt 0:00:17]} 33. Bxa1 {[%emt 0:00:01]} Nb6 {[%emt 0:00:17]} 34. Nc7 {[%emt 0:00:30]} Kf7 {[%emt 0:01:03]} 35. Nb5 {[%emt 0:00:47]} Nc4 {[%emt 0:00:07]} 36. d4 {[%emt 0:01:08]} b3 {[%emt 0:00:22]} 37. Kg2 {[%emt 0:00:32]} b2 {[%emt 0:00:08]} 38. Nd6+ {[%emt 0:00:11]} Ke7 {[%emt 0:00:44]} 0-1

[Event "SRB-chT Women 1st League 2019"]
[Site "Subotica"]
[Date "2019.08.24"]
[Round "3"]
[White "Tadic, Katarina"]
[Black "Chelushkina, Irina"]
[Result "1-0"]
[ECO "A36"]
[WhiteElo "2020"]
[BlackElo "2275"]
[Annotator "NA"]
[PlyCount "82"]
[EventDate "2019.08.23"]
[EventType "team-tourn"]
[EventCountry "SRB"]
[SourceTitle "playchess.com"]
[Source "ChessBase"]
[SourceQuality "1"]
[TimeControl "40/5400+30:1800+30"]

1. Nf3 {[%emt 0:00:30]} c5 {[%emt 0:00:30]} 2. c4 {[%emt 0:00:00]} Nc6 {[%emt 0:00:30]} 3. g3 {[%emt 0:00:00]} g6 {[%emt 0:00:00]} 4. Bg2 {[%emt 0:00:30]} Bg7 {[%emt 0:00:00]} 5. Nc3 {[%emt 0:00:30]} d6 {[%emt 0:00:30]} 6. a3 {[%emt 0:00:30]} e6 {[%emt 0:01:30]} 7. Rb1 {[%emt 0:11:30]} Nge7 {[%emt 0:01:30]} 8. b4 {[%emt 0:00:30]} O-O {[%emt 0:00:30]} 9. O-O {[%emt 0:02:30]} b6 {[%emt 0:01:30]} 10. e3 {[%emt 0:11:30]} Bb7 {[%emt 0:14:30]} 11. Ne2 {[%emt 0:10:30]} Rc8 {[%emt 0:14:30]} 12. d4 {[%emt 0:19:30]} cxb4 {[%emt 0:01:30]} 13. axb4 {[%emt 0:00:30]} a5 {[%emt 0:00:30]} 14. b5 {[%emt 0:19:39]} Nb4 {[%emt 0:00:30]} 15. Nd2 {[%emt 0:00:04]} Bxg2 {[%emt 0:00:30]} 16. Kxg2 {[%emt 0:00:03]} d5 {[%emt 0:00:00]} 17. Ba3 {[%emt 0:00:44]} dxc4 {[%emt 0:00:00]} 18. Bxb4 {[%emt 0:00:17]} axb4 {[%emt 0:00:30]} 19. Rxb4 {[%emt 0:00:19]} c3 {[%emt 0:01:30]} 20. Nf3 {[%emt 0:01:20]} g5 {[%emt 0:12:30]} 21. Kg1 {[%emt 0:06:21]} Nd5 {[%emt 0:05:30]} 22. Rb3 {[%emt 0:00:12]} f5 {[%emt 0:00:00]} 23. Qd3 {[%emt 0:01:36]} g4 {[%emt 0:00:00]} 24. Nh4 {[%emt 0:01:01]} Qc7 {[%emt 0:02:30]} 25. e4 {[%emt 0:02:15]} fxe4 {[%emt 0:01:30]} 26. Qxe4 {[%emt 0:00:01]} Qc4 {[%emt 0:00:30]} 27. Rbb1 {[%emt 0:01:32]} c2 {[%emt 0:09:30]} 28. Ra1 {[%emt 0:02:51]} Nf6 {[%emt 0:02:30]} 29. Qe3 {[%emt 0:00:43]} Rf7 {[%emt 0:02:30]} 30. Rfc1 {[%emt 0:03:30]} Qxb5 {[%emt 0:01:30]} 31. Ra2 {[%emt 0:01:24]} Nd5 {[%emt 0:06:30]} 32. Qe4 {[%emt 0:00:47]} Nf6 {[%emt 0:03:12]} 33. Qe3 {[%emt 0:00:22]} Nd5 {[%emt 0:09:33]} 34. Qe4 {[%emt 0:00:05]} Nf6 {[%emt 0:04:02]} 35. Qe3 {[%emt 0:00:08]} Qb1 {[%emt 0:00:35]} 36. Raxc2 {[%emt 0:02:52]} Qxc2 {[%emt 0:00:15]} 37. Rxc2 {[%emt 0:00:04]} Rxc2 {[%emt 0:00:01]} 38. Qxe6 {[%emt 0:00:39]} b5 {[%emt 0:00:02]} 39. Nf5 {[%emt 0:00:21]} Bf8 {[%emt 0:00:07]} 40. Nf4 {[%emt 0:00:00]} b4 {[%emt 0:00:00]} 41. Nd3 {[%emt 0:01:50]} Nd7 {[%emt 0:01:13]} 1-0

[Event "SRB-chT Women 1st League 2019"]
[Site "Subotica"]
[Date "2019.08.24"]
[Round "3"]
[White "Vuckovic, Lidija"]
[Black "Blagojevic, Tijana"]
[Result "0-1"]
[ECO "D00"]
[WhiteElo "1866"]
[BlackElo "2155"]
[Annotator "NA"]
[PlyCount "52"]
[EventDate "2019.08.23"]
[EventType "team-tourn"]
[EventCountry "SRB"]
[SourceTitle "playchess.com"]
[Source "ChessBase"]
[SourceQuality "1"]
[TimeControl "40/5400+30:1800+30"]

1. d4 {[%emt 0:01:30]} d5 {[%emt 0:00:00]} 2. Bf4 {[%emt 0:00:30]} Nf6 {[%emt 0:00:00]} 3. e3 {[%emt 0:00:30]} c5 {[%emt 0:00:30]} 4. c3 {[%emt 0:02:30]} Nc6 {[%emt 0:00:30]} 5. Nd2 {[%emt 0:02:30]} Bf5 {[%emt 0:03:30]} 6. Ngf3 {[%emt 0:06:30]} e6 {[%emt 0:07:30]} 7. Nh4 {[%emt 0:02:30]} Bg4 {[%emt 0:04:30]} 8. Nhf3 {[%emt 0:10:30]} Be7 {[%emt 0:01:30]} 9. h3 {[%emt 0:01:30]} Bf5 {[%emt 0:07:30]} 10. Ne5 {[%emt 0:15:30]} Nxe5 {[%emt 0:03:30]} 11. Bxe5 {[%emt 0:04:30]} O-O {[%emt 0:15:30]} 12. g4 {[%emt 0:03:30]} Be4 {[%emt 0:10:30]} 13. Nxe4 {[%emt 0:00:30]} Nxe4 {[%emt 0:00:30]} 14. Bd3 {[%emt 0:07:30]} f5 {[%emt 0:11:30]} 15. O-O {[%emt 0:17:34]} Bf6 {[%emt 0:09:30]} 16. Bxe4 {[%emt 0:01:56]} fxe4 {[%emt 0:00:30]} 17. Bxf6 {[%emt 0:00:30]} Qxf6 {[%emt 0:02:42]} 18. Kg2 {[%emt 0:01:06]} cxd4 {[%emt 0:01:45]} 19. cxd4 {[%emt 0:01:25]} Rac8 {[%emt 0:01:52]} 20. Kg3 {[%emt 0:05:54]} Qe7 {[%emt 0:08:07]} 21. f4 {[%emt 0:00:00]} exf3 {[%emt 0:00:33]} 22. Rxf3 {[%emt 0:00:09]} Qd6+ {[%emt 0:00:47]} 23. Kg2 {[%emt 0:00:30]} Rxf3 {[%emt 0:00:36]} 24. Kxf3 {[%emt 0:00:30]} Qh2 {[%emt 0:01:45]} 25. e4 {[%emt 0:00:21]} Rf8+ {[%emt 0:01:14]} 26. Ke3 {[%emt 0:00:07]} Qf2+ 0-1

[Event "SRB-chT Women 1st League 2019"]
[Site "Subotica"]
[Date "2019.08.25"]
[Round "4"]
[White "Batsiashvili, Nino"]
[Black "Doluhanova, Evgeniya"]
[Result "1-0"]
[ECO "A28"]
[WhiteElo "2416"]
[BlackElo "2305"]
[Annotator "NA"]
[PlyCount "37"]
[EventDate "2019.08.23"]
[EventType "team-tourn"]
[EventCountry "SRB"]
[SourceTitle "playchess.com"]
[Source "ChessBase"]
[SourceQuality "1"]
[TimeControl "40/5400+30:1800+30"]

1. c4 {[%emt 0:00:30]} Nf6 {[%emt 0:00:30]} 2. Nc3 {[%emt 0:00:00]} e5 {[%emt 0:00:30]} 3. Nf3 {[%emt 0:00:00]} Nc6 {[%emt 0:00:30]} 4. e4 {[%emt 0:00:00]} Bb4 {[%emt 0:00:30]} 5. d3 {[%emt 0:00:00]} O-O {[%emt 0:01:30]} 6. a3 {[%emt 0:00:30]} Bxc3+ {[%emt 0:00:30]} 7. bxc3 {[%emt 0:00:30]} d6 {[%emt 0:00:30]} 8. g3 {[%emt 0:00:30]} Bg4 {[%emt 0:00:30]} 9. Bg2 {[%emt 0:05:30]} Qc8 {[%emt 0:14:30]} 10. h3 {[%emt 0:00:30]} Bd7 {[%emt 0:00:30]} 11. Nh4 {[%emt 0:00:30]} a6 {[%emt 0:00:30]} 12. a4 {[%emt 0:00:30]} Rb8 {[%emt 0:01:30]} 13. Rb1 $11 {[%emt 0:05:30]} Ne8 {[%emt 0:16:30]} 14. Nf5 {[%emt 0:00:30]} Bxf5 {[%emt 0:00:30]} 15. exf5 {[%emt 0:02:30]} Nf6 {[%emt 0:08:30]} 16. g4 {[%emt 0:01:30]} e4 {[%emt 0:02:30]} 17. dxe4 {[%emt 0:04:30]} Re8 {[%emt 0:01:30]} 18. Qe2 {[%emt 0:04:30]} Nd7 {[%emt 0:11:30]} 19. Be3 1-0

[Event "SRB-chT Women 1st League 2019"]
[Site "Subotica"]
[Date "2019.08.25"]
[Round "4"]
[White "Zimina, Olga"]
[Black "Strutinskaia, Galina"]
[Result "1/2-1/2"]
[ECO "A90"]
[WhiteElo "2376"]
[BlackElo "2205"]
[Annotator "NA"]
[PlyCount "66"]
[EventDate "2019.08.23"]
[EventType "team-tourn"]
[EventCountry "SRB"]
[SourceTitle "playchess.com"]
[Source "ChessBase"]
[SourceQuality "1"]
[TimeControl "40/5400+30:1800+30"]

1. d4 {[%emt 0:00:30]} f5 {[%emt 0:00:30]} 2. c4 {[%emt 0:00:00]} Nf6 {[%emt 0:00:30]} 3. g3 {[%emt 0:00:00]} e6 {[%emt 0:00:30]} 4. Bg2 {[%emt 0:00:30]} c6 {[%emt 0:00:00]} 5. Nc3 {[%emt 0:00:30]} Bb4 {[%emt 0:02:00]} 6. Qc2 {[%emt 0:02:30]} O-O {[%emt 0:01:30]} 7. a3 {[%emt 0:00:30]} Bxc3+ {[%emt 0:04:30]} 8. Qxc3 {[%emt 0:00:30]} d6 {[%emt 0:00:30]} 9. b4 {[%emt 0:14:30]} a5 {[%emt 0:03:30]} 10. Rb1 {[%emt 0:04:30]} axb4 {[%emt 0:08:30]} 11. axb4 {[%emt 0:00:00]} Qe7 {[%emt 0:00:30]} 12. Bb2 {[%emt 0:01:00]} Nbd7 {[%emt 0:00:30]} 13. Nf3 {[%emt 0:02:30]} Ne4 {[%emt 0:13:30]} 14. Qc2 {[%emt 0:09:30]} Ndf6 {[%emt 0:05:30]} 15. O-O {[%emt 0:00:30]} Bd7 {[%emt 0:00:30]} 16. Ne1 {[%emt 0:04:30]} b5 {[%emt 0:01:30]} 17. Bc1 {[%emt 0:09:30]} h6 {[%emt 0:00:30]} 18. c5 {[%emt 0:09:30]} Ra4 {[%emt 0:01:30]} 19. f3 {[%emt 0:10:30]} Ng5 {[%emt 0:00:30]} 20. Nd3 {[%emt 0:01:30]} d5 {[%emt 0:02:30]} 21. Ne5 {[%emt 0:06:30]} Rfa8 {[%emt 0:01:30]} 22. Bxg5 {[%emt 0:07:05]} hxg5 {[%emt 0:00:00]} 23. Qc1 {[%emt 0:00:09]} Nh7 {[%emt 0:00:00]} 24. e4 {[%emt 0:00:07]} Be8 {[%emt 0:02:30]} 25. Re1 {[%emt 0:00:20]} Qf6 {[%emt 0:00:30]} 26. Rb2 {[%emt 0:00:56]} Nf8 {[%emt 0:01:30]} 27. exd5 {[%emt 0:01:43]} exd5 {[%emt 0:00:30]} 28. f4 {[%emt 0:00:18]} Ne6 {[%emt 0:03:30]} 29. fxg5 {[%emt 0:00:08]} Qxg5 {[%emt 0:01:30]} 30. Qxg5 {[%emt 0:01:52]} Nxg5 {[%emt 0:00:00]} 31. g4 {[%emt 0:00:07]} Ra1 {[%emt 0:06:00]} 32. Rxa1 {[%emt 0:08:43]} Rxa1+ {[%emt 0:00:30]} 33. Kf2 {[%emt 0:00:10]} Ne4+ {[%emt 0:00:30]} 1/2-1/2

[Event "SRB-chT Women 1st League 2019"]
[Site "Subotica"]
[Date "2019.08.25"]
[Round "4"]
[White "Bojkovic, Natasa"]
[Black "Gajcin, Marina"]
[Result "1/2-1/2"]
[ECO "B23"]
[WhiteElo "2374"]
[BlackElo "2267"]
[Annotator "NA"]
[PlyCount "33"]
[EventDate "2019.08.23"]
[EventType "team-tourn"]
[EventCountry "SRB"]
[SourceTitle "playchess.com"]
[Source "ChessBase"]
[SourceQuality "1"]
[TimeControl "40/5400+30:1800+30"]

1. e4 {[%emt 0:00:30]} c5 {[%emt 0:00:30]} 2. Nc3 {[%emt 0:00:00]} d6 {[%emt 0:00:00]} 3. f4 {[%emt 0:02:00]} g6 {[%emt 0:00:00]} 4. Nf3 {[%emt 0:00:30]} Bg7 {[%emt 0:00:30]} 5. Bb5+ {[%emt 0:01:30]} Bd7 {[%emt 0:00:00]} 6. Bc4 {[%emt 0:00:30]} Nc6 {[%emt 0:00:00]} 7. d3 {[%emt 0:01:30]} Na5 {[%emt 0:01:30]} 8. Bd2 {[%emt 0:00:30]} e6 {[%emt 0:22:30]} 9. a3 {[%emt 0:17:30]} Ne7 {[%emt 0:06:30]} 10. Ba2 {[%emt 0:00:30]} O-O {[%emt 0:00:30]} 11. O-O {[%emt 0:01:30]} Nac6 {[%emt 0:02:30]} 12. Kh1 {[%emt 0:07:30]} Nd4 {[%emt 0:08:30]} 13. Rb1 {[%emt 0:06:30]} Rc8 {[%emt 0:04:30]} 14. Ne2 {[%emt 0:02:30]} Nxf3 {[%emt 0:08:30]} 15. Rxf3 {[%emt 0:00:00]} d5 {[%emt 0:01:30]} 16. Ng3 {[%emt 0:05:00]} b5 {[%emt 0:03:30]} 17. Qe1 {[%emt 0:03:30]} 1/2-1/2

[Event "SRB-chT Women 1st League 2019"]
[Site "Subotica"]
[Date "2019.08.25"]
[Round "4"]
[White "Nomin-Erdene, Davaademberel"]
[Black "Gaponenko, Inna"]
[Result "1/2-1/2"]
[ECO "B33"]
[WhiteElo "2367"]
[BlackElo "2446"]
[Annotator "NA"]
[PlyCount "84"]
[EventDate "2019.08.23"]
[EventType "team-tourn"]
[EventCountry "SRB"]
[SourceTitle "playchess.com"]
[Source "ChessBase"]
[SourceQuality "1"]
[TimeControl "40/5400+30:1800+30"]

1. e4 {[%emt 0:01:30]} c5 {[%emt 0:00:30]} 2. Nf3 {[%emt 0:00:00]} Nc6 {[%emt 0:00:00]} 3. d4 {[%emt 0:00:00]} cxd4 {[%emt 0:00:00]} 4. Nxd4 {[%emt 0:00:30]} Nf6 {[%emt 0:00:00]} 5. Nc3 {[%emt 0:00:00]} e5 {[%emt 0:00:00]} 6. Ndb5 {[%emt 0:00:00]} d6 {[%emt 0:00:30]} 7. Bg5 {[%emt 0:00:00]} a6 {[%emt 0:00:30]} 8. Na3 {[%emt 0:00:00]} b5 {[%emt 0:00:00]} 9. Nd5 {[%emt 0:00:30]} Be7 {[%emt 0:00:00]} 10. Bxf6 {[%emt 0:00:30]} Bxf6 {[%emt 0:00:30]} 11. c4 {[%emt 0:00:30]} Nd4 {[%emt 0:00:30]} 12. Bd3 {[%emt 0:08:30]} Be6 {[%emt 0:02:30]} 13. O-O {[%emt 0:00:30]} Bxd5 {[%emt 0:00:30]} 14. exd5 {[%emt 0:07:30]} Qb6 {[%emt 0:45:30]} 15. cxb5 {[%emt 0:13:30]} axb5 {[%emt 0:00:00]} 16. Nc2 {[%emt 0:00:30]} O-O {[%emt 0:00:00]} 17. Nxd4 {[%emt 0:07:30]} Qxd4 {[%emt 0:00:30]} 18. Bxb5 {[%emt 0:04:30]} Qxb2 {[%emt 0:00:00]} 19. a4 {[%emt 0:00:30]} e4 {[%emt 0:02:00]} 20. Rc1 {[%emt 0:02:30]} Bg5 {[%emt 0:09:30]} 21. Rc6 {[%emt 0:05:30]} Qe5 {[%emt 0:02:30]} 22. Re1 {[%emt 0:02:30]} f5 {[%emt 0:07:30]} 23. Qa1 {[%emt 0:01:30]} Qe7 {[%emt 0:11:24]} 24. Qc3 {[%emt 0:05:30]} Bf6 {[%emt 0:02:48]} 25. Qa3 {[%emt 0:10:30]} Be5 {[%emt 0:01:34]} 26. a5 {[%emt 0:01:30]} Rfb8 {[%emt 0:10:12]} 27. Qa4 {[%emt 0:03:30]} Qb7 {[%emt 0:01:32]} 28. Rb1 {[%emt 0:05:54]} Qa7 {[%emt 0:01:02]} 29. a6 {[%emt 0:00:29]} Bd4 {[%emt 0:00:50]} 30. Qc2 {[%emt 0:00:49]} Bc5 {[%emt 0:00:21]} 31. Kf1 {[%emt 0:03:13]} Rf8 {[%emt 0:00:54]} 32. Rc1 {[%emt 0:04:38]} Rfb8 {[%emt 0:01:21]} 33. Qe2 {[%emt 0:00:31]} Rb6 {[%emt 0:00:42]} 34. R1xc5 {[%emt 0:07:36]} dxc5 {[%emt 0:00:03]} 35. Qc4 {[%emt 0:00:01]} Rxc6 {[%emt 0:00:29]} 36. dxc6+ {[%emt 0:00:41]} Kh8 {[%emt 0:00:26]} 37. g3 {[%emt 0:02:36]} Qb6 {[%emt 0:00:37]} 38. Kg2 {[%emt 0:00:24]} h6 {[%emt 0:00:21]} 39. Qa4 {[%emt 0:01:00]} Ra7 {[%emt 0:00:35]} 40. Qc4 {[%emt 0:00:00]} Ra8 {[%emt 0:00:00]} 41. Qa4 {[%emt 0:02:08]} Ra7 {[%emt 0:15:39]} 42. Qc4 {[%emt 0:04:30]} Ra8 {[%emt 0:01:41]} 1/2-1/2